Cogmind - Beta 14 @@@ ROGUE MODE // 2024.08.07 @ 14:26:37 Player: Cwaftwer Result: Destroyed by Autobeam Turret with Autobeam Performance ------------- Evolutions (0) 0 Regions Visited (3) 600 Robots Destroyed (28) 140 Value Destroyed (630) 630 Prototype IDs (0) 0 Alien Tech Used (0) 0 Bonus (0) 0 TOTAL SCORE: 1370 Bonus ------- None Cogmind --------- Core Integrity 0/250 Matter 110/300 Energy 250/250 System Corruption 0% Temperature Cool (6) Movement Treading (160) Location -10/Subcaves Parts ------- > --- POWER (1) -------- Ion Engine > --- PROPULSION (2) --- Light Treads Light Treads > --- UTILITY (2) ------ Large Storage Unit Signal Interpreter > --- WEAPON (2) ------- Light Cannon Light Cannon > --- INVENTORY (15) --- Ion Engine Ion Engine Light Nuclear Core Wheel Wheel Heat Sink Large Matter Pod (150) Signal Interpreter Light Armor Plating Hacking Suite Rainbow Chip Light Cannon Light Cannon Grenade Launcher Rocket Launcher Peak State ------------ > --- POWER ------------ Ion Engine > --- PROPULSION ------- Light Treads Light Treads > --- UTILITY ---------- Large Storage Unit Signal Interpreter > --- WEAPON ----------- Light Cannon Rocket Launcher > --- INVENTORY -------- Ion Engine Ion Engine Light Nuclear Core Wheel Wheel Heat Sink Large Matter Pod Signal Interpreter Light Armor Plating Hacking Suite Rainbow Chip Light Cannon Light Cannon Light Cannon Grenade Launcher [Rating: 11] Favorites ----------- Power Ion Engine Engine Ion Engine Propulsion Light Treads Treads Light Treads Wheel Wheel Utility Large Storage Unit Device Improved Terrain Scanner Storage Large Storage Unit Processor Signal Interpreter Protection Light Armor Plating Weapon Light Cannon Ballistic Gun Light Assault Rifle Ballistic Cannon Light Cannon Launcher Grenade Launcher Build | -11 -10 -10 -10 ------- Run | Yrd Mat Min Sub Slots Evolved . | . . . . Power . | . . . . Propulsion . | . . . . Utility . | . . . . Weapon . | . . . . Parts Attached 20 | 7 7 3 3 Power 1 | 1 . . . Engine 1 | 1 . . . Core . | . . . . Reactor . | . . . . Propulsion 4 | 2 2 . . Treads 2 | . 2 . . Leg . | . . . . Wheel 2 | 2 . . . Hover . | . . . . Flight . | . . . . Utility 5 | 2 1 1 1 Device 1 | 1 . . . Storage 2 | 1 1 . . Processor 1 | . . . 1 Hackware . | . . . . Protection 1 | . . 1 . Artifact . | . . . . Weapon 10 | 2 4 2 2 Energy Gun . | . . . . Energy Cannon . | . . . . Ballistic Gun 4 | 2 2 . . Ballistic Cannon 4 | . 2 1 1 Launcher 2 | . . 1 1 Special Weapon . | . . . . Impact Weapon . | . . . . Slashing Weapon . | . . . . Piercing Weapon . | . . . . Special Melee Weapon . | . . . . Unidentified Prototypes . | . . . . Parts Lost 4 | . 3 . 1 Power . | . . . . Propulsion 2 | . 2 . . Utility 1 | . . . 1 Weapon 1 | . 1 . . Highest Loss Streak 2 | . 2 . 1 To Critical Strikes . | . . . . Average Slot Usage (%) 99 | . 99 100 98 Engine 14 | . 14 14 14 Treads 25 | . 22 28 28 Wheel 2 | . 4 . . Device 9 | . 14 11 . Storage 14 | . 14 14 14 Processor 1 | . . . 5 Protection 2 | . . 2 7 Ballistic Gun 10 | . 21 . . Ballistic Cannon 17 | . 6 27 27 Peak Build Rating 11 | 9 10 10 11 Average Rating 9 | 4 9 9 9 On Entrance 7 | . 9 10 9 Naked Turns . | . . . . Heaviest Build 34 | 13 32 34 34 Greatest Support 40 | 20 40 40 40 Greatest Overweight (x) 1 | . 1 . . Average Overweight (x) . | . . . . Largest Inventory Capacity 15 | 8 15 15 15 Average Capacity 13 | 7 13 15 15 Most Carried 15 | 6 15 15 15 Average Carried 11 | 3 8 15 14 Final Capacity 15 | 8 15 15 15 Final Carried 15 | 5 15 15 15 Class Distribution -------------------- 100% | Mutant Dominant Class ---------------- Mutant | -10/Materials Mutant | -10/Mines Mutant | -10/Subcaves Resources | -11 -10 -10 -10 ----------- Run | Yrd Mat Min Sub Matter Collected 834 | 288 273 41 232 Remotely . | . . . . Salvage Created 686 | 113 315 24 234 Parts 55 | 7 26 6 16 Haulers Intercepted . | . . . . Recyclers Shooed . | . . . . Parts Field Recycled . | . . . . Retrieved Matter . | . . . . Parts Self-Destructed 15 | . . . 15 Prevented . | . . . . Kills | -11 -10 -10 -10 ------- Run | Yrd Mat Min Sub Combat Hostiles Destroyed 22 | . 9 3 10 Guns 9 | . 9 . . Cannons 10 | . . 3 7 AOE 3 | . . . 3 Classes Destroyed 7 | 2 3 . 2 Tunneler 3 | 2 . 1 . Recycler 1 | 1 . . . Operator 1 | . 1 . . Turret 1 | . . . 1 Swarmer 10 | . 3 3 4 Grunt 6 | . 6 . . Subdweller 6 | . . . 6 Best Kill Streak 5 | 3 5 3 5 Combat Bots Only 5 | . 5 3 4 Max Kills in Single Turn 2 | 1 1 1 2 Gunslinging . | . . . . Exploded 2 | . . . 2 Melee . | . . . . Uniques/NPCs Destroyed . | . . . . Combat | -11 -10 -10 -10 -------- Run | Yrd Mat Min Sub Hostile Shots Fired 152 | . 61 13 78 Missed 58 | . 19 4 35 Damage Taken 1072 | . 473 77 522 Core 251 | . 156 7 88 Absorbed by Shields . | . . . . Core Remaining (%) 100 | 100 . . . Volleys Fired 91 | 9 37 9 36 Largest 2 | 2 2 2 2 Hottest 70 | 40 70 70 70 Shots Fired 179 | 18 71 18 72 Gun 87 | 18 69 . . Cannon 89 | . 2 17 70 Launcher 3 | . . 1 2 Special . | . . . . Kinetic 176 | 18 71 17 70 Thermal . | . . . . Explosive 3 | . . 1 2 Electromagnetic . | . . . . Robot Hit Streak 13 | 5 8 3 13 Robot Miss Streak 4 | 2 2 3 4 Penetration Max . | . . . . Secondary Targets 4 | . 4 . . Max Gunslinging Chain 1 | . 1 . . Shots Hit Robots 98 | 13 48 7 30 Core Hits 47 | 6 18 4 19 Critical Kills . | . . . . Critical Parts Destroyed . | . . . . Critical Strikes 2 | . . 1 1 Blast 2 | . . 1 1 Melee Attacks . | . . . . Impact . | . . . . Slashing . | . . . . Piercing . | . . . . Sneak Attacks . | . . . . Combat Hostiles . | . . . . Follow-up Attacks . | . . . . Damage Inflicted 1435 | 110 503 164 658 Guns 596 | 110 486 . . Cannons 658 | . 17 126 515 Explosions 181 | . . 38 143 Melee . | . . . . Ramming . | . . . . Kinetic 1254 | 110 503 126 515 Thermal . | . . . . Explosive 181 | . . 38 143 Electromagnetic . | . . . . Impact . | . . . . Slashing . | . . . . Piercing . | . . . . Highest Corruption . | . . . . Average Corruption . | . . . . Corruption Purged . | . . . . Corruption Blocked . | . . . . Overload Shots . | . . . . Overflow Damage . | . . . . Projectiles . | . . . . Explosions . | . . . . Melee . | . . . . Knockbacks 9 | . 1 . 8 Impact . | . . . . Kinetic 8 | . 1 . 7 Secondary 1 | . . . 1 Self-Inflicted Damage . | . . . . Shots . | . . . . Rammed . | . . . . Targets Rammed . | . . . . Kicked . | . . . . Crushed . | . . . . Highest Temperature 72 | . 16 72 13 Average Temperature 21 | . 8 34 10 Received Heat Transfer 351 | . 219 . 132 Siege Activations . | . . . . Robots Corrupted . | . . . . Combat Hostiles . | . . . . Parts Fried . | . . . . Impact Corruptions . | . . . . Robots Melted . | . . . . Combat Hostiles . | . . . . Parts Melted . | . . . . Heat Transferred . | . . . . Parts Sabotaged . | . . . . Parts Stolen . | . . . . Parts Stripped . | . . . . Power Chain Reactions . | . . . . Alert | -11 -10 -10 -10 ------- Run | Yrd Mat Min Sub Peak Influence 214 | 15 214 80 . Initial 9 | . 9 3 . Average 65 | 4 85 37 . Maximum Alert Level 1 | . 1 . . Low Security (%) 83 | 100 74 100 . Level 1 16 | . 25 . . Level 2 . | . . . . Level 3 . | . . . . Level 4 . | . . . . Level 5 . | . . . . High Security . | . . . . Max Security . | . . . . Squads Dispatched 2 | . 2 . . Investigation . | . . . . Extermination . | . . . . Reinforcement 2 | . 2 . . Assault . | . . . . Garrison . | . . . . Intercept . | . . . . Searches Triggered . | . . . . Construction Impeded . | . . . . Haulers Reinforced . | . . . . Active Scanning Responses . | . . . . Cargo Convoy Interrupts . | . . . . Stealth | -11 -10 -10 -10 --------- Run | Yrd Mat Min Sub Distress Signals . | . . . . Communications Jammed . | . . . . Distress Signals . | . . . . Times Spotted 29 | . 13 3 13 Peak Tracking Total 6 | . 5 3 6 Tactical Retreats 1 | . . . 1 Traps | -11 -10 -10 -10 ------- Run | Yrd Mat Min Sub Traps Triggered . | . . . . Indirectly . | . . . . Trap Hack Attempts . | . . . . Triggered . | . . . . Disarmed . | . . . . Reprogrammed . | . . . . Reused . | . . . . Traps Extracted . | . . . . Installed . | . . . . Triggered . | . . . . Machines | -11 -10 -10 -10 ---------- Run | Yrd Mat Min Sub Machines Disabled 2 | . . . 2 Max in Single Turn 1 | . . . 1 Machines Repaired . | . . . . Machines Dismantled . | . . . . Machines Sabotaged . | . . . . Overloaded Fab Kills . | . . . . Hacking | -11 -10 -10 -10 --------- Run | Yrd Mat Min Sub Machines Accessed 8 | . 6 2 . Terminals 6 | . 4 2 . Fabricators . | . . . . Repair Stations . | . . . . Recycling Units 2 | . 2 . . Scanalyzers . | . . . . Garrison Access . | . . . . Total Hacks 27 | . 18 9 . Successful 17 | . 12 5 . Failed 10 | . 6 4 . Catastrophic 1 | . 1 . . Database Lockouts . | . . . . Manual . | . . . . Terminals 22 | . 13 9 . Fabricators . | . . . . Repair Stations . | . . . . Recycling Units 5 | . 5 . . Scanalyzers . | . . . . Garrison Access . | . . . . Terminal Hacks 13 | . 8 5 . Record 5 | . 2 3 . Robot Analysis 1 | . 1 . . Alert Level 2 | . 1 1 . Locate Traps 2 | . 2 . . Patrol Status 1 | . 1 . . Investigation Status 1 | . . 1 . Zone Layout 1 | . 1 . . Fabricator Hacks . | . . . . Repair Station Hacks . | . . . . Recycling Unit Hacks 4 | . 4 . . Process 1 | . 1 . . Report Inventory 2 | . 2 . . Retrieve Matter 1 | . 1 . . Scanalyzer . | . . . . Garrison Access Hacks . | . . . . Unauthorized Hacks . | . . . . Terminals . | . . . . Fabricators . | . . . . Repair Stations . | . . . . Recycling Units . | . . . . Scanalyzers . | . . . . Garrison Access . | . . . . Data Cores Recovered . | . . . . Used . | . . . . Hacking Detections 5 | . 4 1 . Full Trace Events . | . . . . Feedback Events . | . . . . Feedback Blocked . | . . . . Robot Schematics Acquired . | . . . . Robots Built . | . . . . Authchips . | . . . . Time . | . . . . Total Robot Build Rating . | . . . . Part Schematics Acquired . | . . . . Parts Built . | . . . . Authchips . | . . . . Time . | . . . . Total Part Build Rating . | . . . . Parts Repaired . | . . . . Time . | . . . . Parts Recycled . | . . . . Recycled Matter 227 | . 227 . . Retrieved Matter 257 | . 257 . . Retrieved Components . | . . . . Parts Scanalyzed . | . . . . Part Schematics Acquired . | . . . . Parts Damaged . | . . . . Bothacking | -11 -10 -10 -10 ------------ Run | Yrd Mat Min Sub Used RIF Installer . | . . . . Robots Hacked . | . . . . Non-combat . | . . . . Combat . | . . . . Robot Hacks Applied . | . . . . Relay Couplers Released . | . . . . Fabnet Peak Effective % . | . . . . Robots Rewired . | . . . . Allies Hacked . | . . . . Hacks Repelled . | . . . . Allies | -11 -10 -10 -10 -------- Run | Yrd Mat Min Sub Total Allies . | . . . . Largest Group . | . . . . Highest-Rated Group . | . . . . Highest-Rated Ally . | . . . . Total Orders . | . . . . Ally Attacks . | . . . . Total Damage . | . . . . Kills . | . . . . Allies Corrupted . | . . . . Allies Melted . | . . . . Intel | -11 -10 -10 -10 ------- Run | Yrd Mat Min Sub Robot Analysis Total 1 | . 1 . . Derelict Logs Recovered 1 | . . . 1 Drone Launches . | . . . . Drone Recoveries . | . . . . Exploration | -11 -10 -10 -10 ------------- Run | Yrd Mat Min Sub Turns Passed 1813 | 81 850 414 468 Spaces Moved 871 | 51 378 226 216 Core 7 | 7 . . . Treads 733 | . 291 226 216 Legs . | . . . . Wheels 131 | 44 87 . . Hover . | . . . . Flight . | . . . . Fastest Speed 50 | 50 80 160 160 Average Speed 147 | 75 141 160 160 Slowest Speed 160 | 80 160 160 160 Overloaded Moves . | . . . . Propulsion Burnouts . | . . . . Robots Hopped . | . . . . Cave-ins Triggered . | . . . . Exploration Rate (%) 35 | 4 70 47 22 Regions Visited 3 Branch Regions 2 Pre-discovered Areas . | . . . . Known Exits Taken . | . . . . Unknown Exits Taken 3 | 1 1 1 . Scrap Searched . | . . . . Spaces Dug . | . . . . Terrain Destroyed 20 | . . 3 17 Melee . | . . . . Projectile 1 | . . . 1 AOE 19 | . . 3 16 Terrain Rammed . | . . . . Walls Destroyed . | . . . . Machines Disabled . | . . . . Actions | -11 -10 -10 -10 --------- Run | Yrd Mat Min Sub Total 1234 | 78 630 260 266 Wait 215 | . 184 21 10 Move 868 | 50 377 225 216 Hop . | . . . . Pick Up 33 | 12 19 1 1 Fast Attach . | . . . . Attach 13 | 7 5 . 1 Detach . | . . . . Swap 7 | . 2 3 2 Drop 7 | . 6 1 . Fire 91 | 9 37 9 36 Melee . | . . . . Ram . | . . . . Kick . | . . . . Crush . | . . . . Escape Stasis . | . . . . Rewire . | . . . . Trap . | . . . . Miscellaneous . | . . . . Route ------- -11/Scrapyard -10/Materials (discovered 4 exits: [*Mat x2] / *Min x2) -10/Mines (discovered 3 exits: [*Mat x2] / [*Sub]) -10/Subcaves History --------- Turn | Location | Event 4 | -11/Scrapyard | Discovered new exit (range 16) 82 | -11/Scrapyard | Entered Materials 245 | -10/Materials | Core integrity fell below 50% 310 | -10/Materials | Build established: Mutant 336 | -10/Materials | Discovered new exit (range 8) 347 | -10/Materials | Discovered new exit (range 13) 810 | -10/Materials | Discovered new exit (range 12) 852 | -10/Materials | Discovered new exit (range 14) 932 | -10/Materials | Entered Mines 960 | -10/Mines | Met a Derelict bent on vengeance 974 | -10/Mines | Discovered new exit (range 6) 1045 | -10/Mines | Discovered new exit (range 14) 1260 | -10/Mines | Received a Rocket Launcher from a helpful Derelict 1332 | -10/Mines | Discovered new exit (range 9) 1346 | -10/Mines | Entered Subcaves 1586 | -10/Subcaves | A Subdweller sparked back to life 1586 | -10/Subcaves | A Subdweller sparked back to life 1586 | -10/Subcaves | A Subdweller sparked back to life 1617 | -10/Subcaves | Core integrity fell below 20% 1637 | -10/Subcaves | Found Prototype Processor 1669 | -10/Subcaves | Shifting Twisted Machinery released Mak. Thermal Plating 1700 | -10/Subcaves | Shifting Twisted Machinery released Shrapnel Trap 1814 | -10/Subcaves | Destroyed by Autobeam Turret with Autobeam Last Messages --------------- Acquired 39 matter. Subatomizers dissect the Sub. Power Source. Acquired 33 matter. Acquired 6 matter. Acquired Prototype Processor. Subatomizers dissect the Sub. Power Source. Mak. Thermal Plating falls loose from the Twisted Machinery. S2-HY7(u) builds Twisted Machinery. Shrapnel Trap falls loose from the Twisted Machinery. S2-HY7(u) builds Twisted Machinery. S-10 Pest destroyed. Flight Unit fries itself beyond repair. S-10 Pest destroyed. Lgt. Ion Engine fries itself beyond repair. Lgt. Assault Rifle fries itself beyond repair. Lgt. Ion Engine fries itself beyond repair. Autobeam Turret destroyed. Map ----- +----------------------------------------------------+ | ?????????????????????????????????????????????????? | | ?????????????????????????????????????????????????? | | ?????????????????????????????????????????????????? | | ?????????????????????????????????????????????????? | | ?????????????????????????????????????????????????? | | ?????????????????????????????????????????????????? | | ?????????????????????????????????????????????????? | | ?????????????????????????????????????????????????? | | ?????????????????????????????????????????????????? | | ?????????????????????????????????????????????????? | | ?????????????????????????????????????????????????? | | ?????????????????????????????????????????????????? | | ?????????????????????????????????????????????????? | | ?????????????????????????????????????????????????? | | ?????????????????????????????????????????????????? | | ?????????????????????????????????????????????????? | | ?????????????????????????????????????????????????? | | ?????????????????????????????##??????????????????? | | ?????????????????????????????"???????????????????? | | ????????????????????????????"#???????????????????? | | ???????????????????????????? #???????????????????? | | ??????????????????????????? ##??????????????????? | | ??????????????????????????# #??????????????????? | | ????????????????????????## #?????""???????????? | | ??????????????????????### ## "#???????????? | | ??????????????###???###;;@ #???????????????? | | ??????????##??# #### ##???????????????? | | ?????????## ???# " " ???????????? | | ?????????# #### "" " ??????????? | | ?????????#" # # " #; &!= ?????????? | | ??????????#"" ## ## %!& % %??????????? | | ##????????# "" ### =%& % %??????????? | | ##????#"" "#" #### t??????????? | | ##??# """"#"""### ; ## # ???????????? | | " #???#""""##"""### " ## ##?##? ???????????? | | #" ###???# #"""""## ## #?##??????????????????? | | ### " ##??# "#" "### #?###?????????????????????? | | #?#" ! #?##""## ##?# #?????????????????????????? | | ### " ### ## ##?? #?????????????????????????? | | "" """"""" ## # ?????????????????????????? | | """ """" """ " #?????????????????????????? | | ##""" """"""" #?????????????????????????? | | ###""" " """### #????????????????????????? | | ### """""##?####?????????????????????????? | | ### " """""#???????????????????????????????? | | #?# """ ""&"#???????????????????????????????? | | ??#"""" ####" #???????????????????????????????? | | ??## " ##???#####???????????????????????????????? | | ???######????????????????????????????????????????? | | ?????????????????????????????????????????????????? | +----------------------------------------------------+ Best States ------------- Heat Dissipation 25 Energy Generation 10 Energy Capacity 250 Matter Stores 300 Matter Capacity 300 Sight Range 16 Terrain Scan Range 16 Terrain Scan Density 10 Armor Coverage 150 Evasion (%) 44 Recoil Reduction 2 Item Schematics ----------------- None Robot Schematics ------------------ None Fabricated ------------ Nothing Alien Tech Used ----------------- None Achievements -------------- None Challenges ------------ None Game ------ Seed ThiefAluminumFlightbrick Manual? 0 Play Time 00:16:49 Cumulative 43.0 hours Start 2024.08.07 @ 14:10:27 End 2024.08.07 @ 14:26:37 Sessions 1 Manual Loads 0 Difficulty Rogue Special Mode None Game No. 72 Rogue 71 Adventurer 1 Explorer 0 Win Type - Total 0 Types 0/0/0/0/0/0/0/0/0 Lore% 25 Gallery% 38 Achievement% 32 Wizard Run 0 Options --------- Layout 1 ASCII 0 Keyboard 0 Movement Mouse Keybinds 0 Fullscreen 1 Font 24/Smallcaps Map View 50x40 Zoom Use 0% Tactical HUD 0 Map Filters NONE Filters NONE Steam 1 RUN: 767e2b59-85b1-4ce6-b00b-feced8f50c20